Cogmind - Beta 15 @@@ ROGUE MODE // 2025.06.01 @ 04:58:22 Player: Danii Result: Destroyed by D-53 Grenadier with Mini Grenade Launcher Performance ------------- Evolutions (0) 0 Regions Visited (2) 400 Robots Destroyed (5) 25 Value Destroyed (106) 106 Prototype IDs (0) 0 Alien Tech Used (0) 0 Bonus (0) 0 TOTAL SCORE: 531 Bonus ------- None Cogmind --------- Core Integrity 0/250 Matter 118/300 Energy 100/100 System Corruption 11% Temperature Warm (180) Movement Core (100) Ox1 Location -10/Mines Parts ------- > --- POWER (1) -------- (None) > --- PROPULSION (2) --- (None) > --- UTILITY (2) ------ Small Storage Unit > --- WEAPON (2) ------- (None) > --- INVENTORY (8) ---- Ion Engine Wheel Compact Wheel Small Laser Heavy Assault Rifle Heavy Assault Rifle Heavy Assault Rifle Peak State ------------ > --- POWER ------------ Ion Engine > --- PROPULSION ------- Light Treads Light Treads > --- UTILITY ---------- Small Storage Unit Improved Targeting Computer > --- WEAPON ----------- Small Laser Grenade Launcher > --- INVENTORY -------- Ion Engine Wheel Compact Wheel Small Laser Heavy Assault Rifle Heavy Assault Rifle Heavy Assault Rifle Heavy Assault Rifle [Rating: 9] Favorites ----------- Power Ion Engine Engine Ion Engine Propulsion Light Treads Treads Light Treads Wheel Compact Wheel Utility Small Storage Unit Storage Small Storage Unit Processor Improved Targeting Computer Weapon Small Laser Energy Gun Small Laser Ballistic Gun Assault Rifle Launcher Grenade Launcher Build | -11 -10 -10 ------- Run | Yrd Mat Min Slots Evolved . | . . . Power . | . . . Propulsion . | . . . Utility . | . . . Weapon . | . . . Parts Attached 10 | 6 3 1 Power 1 | . 1 . Engine 1 | . 1 . Core . | . . . Reactor . | . . . Propulsion 3 | 3 . . Treads 2 | 2 . . Leg . | . . . Wheel 1 | 1 . . Hover . | . . . Flight . | . . . Utility 2 | 1 1 . Device . | . . . Storage 1 | 1 . . Processor 1 | . 1 . Hackware . | . . . Protection . | . . . Artifact . | . . . Weapon 4 | 2 1 1 Energy Gun 1 | 1 . . Energy Cannon . | . . . Ballistic Gun 2 | 1 . 1 Ballistic Cannon . | . . . Launcher 1 | . 1 . Special Weapon . | . . . Impact Weapon . | . . . Slashing Weapon . | . . . Piercing Weapon . | . . . Special Melee Weapon . | . . . Unidentified Prototypes . | . . . Parts Lost 7 | . . 7 Power 1 | . . 1 Propulsion 2 | . . 2 Utility 1 | . . 1 Weapon 3 | . . 3 Highest Loss Streak 7 | . . 7 To Critical Strikes . | . . . Average Backups 5 | 3 6 7 Power 1 | . 1 1 Propulsion 2 | 2 2 2 Utility . | . . . Weapon 2 | . 2 4 Tool/Special . | . . . Unused Backups 6 | . . 6 Power 1 | . . 1 Propulsion 1 | . . 1 Utility . | . . . Weapon 4 | . . 4 Tool/Special . | . . . Average Slot Usage (%) 80 | . 77 87 Engine 5 | . 3 11 Treads 27 | . 28 26 Storage 14 | . 14 14 Processor 4 | . 2 9 Energy Gun 13 | . 14 11 Ballistic Gun 4 | . 5 1 Launcher 9 | . 8 11 Peak Build Rating 9 | 5 9 9 Average Rating 6 | 3 5 8 On Entrance 4 | . 5 9 Naked Turns . | . . . Heaviest Build 14 | 8 14 14 Greatest Support 40 | 40 40 40 Greatest Overweight (x) . | . . . Average Overweight (x) . | . . . Largest Inventory Capacity 8 | 8 8 8 Average Capacity 7 | 7 8 8 Most Carried 8 | 5 8 8 Average Carried 6 | 3 6 7 Final Capacity 8 | 8 8 8 Final Carried 8 | 5 8 7 Class Distribution -------------------- 100% | Mutant Dominant Class ---------------- Mutant | -10/Materials Mutant | -10/Mines Resources | -11 -10 -10 ----------- Run | Yrd Mat Min Matter Collected 203 | 203 . . Remotely . | . . . Salvage Created 89 | . 65 24 Parts 6 | . 3 3 Haulers Intercepted . | . . . Recyclers Shooed . | . . . Parts Field Recycled . | . . . Retrieved Matter . | . . . Parts Self-Destructed . | . . . Prevented . | . . . Kills | -11 -10 -10 ------- Run | Yrd Mat Min Combat Hostiles Destroyed 12 | . 2 10 AOE 12 | . 2 10 Classes Destroyed 4 | . 2 2 Builder 1 | . 1 . Swarmer 2 | . . 2 Grunt 2 | . 2 . Assembled 8 | . . 8 Best Kill Streak 10 | . 3 10 Combat Bots Only 10 | . 2 10 Max Kills in Single Turn 3 | . 2 3 Gunslinging . | . . . Exploded 3 | . 2 3 Melee . | . . . Uniques/NPCs Destroyed . | . . . Combat | -11 -10 -10 -------- Run | Yrd Mat Min Hostile Shots Fired 64 | . 3 61 Missed 22 | . 1 21 Hits 42 | . 2 40 Melee 11 | . . 11 Projectile 31 | . 2 29 AOE 5 | . . 5 Critical Strikes 3 | . . 3 Damage Taken 884 | . 33 851 Core 270 | . . 270 Absorbed by Shields . | . . . Core Remaining (%) 100 | 100 . . Volleys Fired 13 | . 3 10 Largest 2 | . 1 2 Hottest 70 | . 30 70 Shots Fired 17 | . 3 14 Gun 5 | . . 5 Cannon . | . . . Launcher 12 | . 3 9 Special . | . . . Kinetic . | . . . Thermal 5 | . . 5 Explosive 12 | . 3 9 Electromagnetic . | . . . Robot Hit Streak 3 | . . 3 Robot Miss Streak 2 | . 2 2 Penetration Max . | . . . Secondary Targets . | . . . Shots Hit Robots 4 | . . 4 Core Hits 26 | . 5 21 Critical Kills . | . . . Critical Parts Destroyed . | . . . Critical Strikes . | . . . Melee Attacks . | . . . Impact . | . . . Slashing . | . . . Piercing . | . . . Sneak Attacks . | . . . Combat Hostiles . | . . . Follow-up Attacks . | . . . Damage Inflicted 918 | . 194 724 Guns 21 | . . 21 Cannons . | . . . Explosions 897 | . 194 703 Melee . | . . . Ramming . | . . . Kinetic . | . . . Thermal 21 | . . 21 Explosive 897 | . 194 703 Electromagnetic . | . . . Impact . | . . . Slashing . | . . . Piercing . | . . . Highest Corruption 11 | . . 11 Average Corruption 9 | . . 9 Corruption Purged . | . . . Corruption Blocked . | . . . Effects 2 | . . 2 Heat Flow Errors 1 | . . 1 Misdirections 1 | . . 1 Overload Shots . | . . . Overflow Damage 35 | . . 35 Projectiles . | . . . Explosions 35 | . . 35 Melee . | . . . Knockbacks . | . . . Impact . | . . . Kinetic . | . . . Secondary . | . . . Self-Inflicted Damage 9 | . . 9 Shots 1 | . . 1 Rammed . | . . . Targets Rammed . | . . . Kicked . | . . . Crushed . | . . . Highest Temperature 227 | . . 227 Average Temperature 43 | . . 43 Received Heat Transfer 78 | . 18 60 Siege Activations . | . . . Martial Activations . | . . . Shielding Activations . | . . . Robots Disrupted . | . . . Combat Hostiles . | . . . Robots Corrupted . | . . . Combat Hostiles . | . . . Parts Fried . | . . . Impact Corruptions . | . . . Robots Melted . | . . . Combat Hostiles . | . . . Parts Melted . | . . . Heat Transferred 50 | . . 50 Parts Sabotaged . | . . . Parts Stolen . | . . . Parts Stripped . | . . . Power Chain Reactions . | . . . Alert | -11 -10 -10 ------- Run | Yrd Mat Min Maximum Alert Level . | . . . Low Security (%) 100 | 100 100 100 Level 1 . | . . . Level 2 . | . . . Level 3 . | . . . Level 4 . | . . . Level 5 . | . . . High Security . | . . . Max Security . | . . . Peak Influence 68 | . 68 66 Initial 10 | . . 10 Average 16 | . 16 31 Influence Increases 148 | . 68 80 Destroy 0b10 Robot/C 80 | . 40 40 Destroy 0b10 Robot/NC 5 | . 5 . Destroy Leader 10 | . 10 . Destroy Structure 53 | . 13 40 Influence Decreases 148 | . 40 108 Entered New Map 18 | . . 18 Time Decay 80 | . 40 40 Lost Part 50 | . . 50 Squads Dispatched . | . . . Investigation . | . . . Extermination . | . . . Reinforcement . | . . . Assault . | . . . Garrison . | . . . Intercept . | . . . Searches Triggered . | . . . Construction Impeded . | . . . Haulers Reinforced . | . . . Active Scanning Responses . | . . . Cargo Convoy Interrupts . | . . . Stealth | -11 -10 -10 --------- Run | Yrd Mat Min Distress Signals . | . . . Communications Jammed . | . . . Distress Signals . | . . . Times Spotted 28 | . 2 26 Peak Tracking Total 13 | . 2 13 Tactical Retreats 2 | . . 2 Traps | -11 -10 -10 ------- Run | Yrd Mat Min Traps Triggered . | . . . Indirectly . | . . . Trap Hack Attempts . | . . . Triggered . | . . . Disarmed . | . . . Reprogrammed . | . . . Reused . | . . . Traps Extracted . | . . . Installed . | . . . Triggered . | . . . Machines | -11 -10 -10 ---------- Run | Yrd Mat Min Machines Disabled . | . . . Max in Single Turn . | . . . Machines Repaired . | . . . Machines Dismantled . | . . . Machines Sabotaged . | . . . Overloaded Fab Kills . | . . . Hacking | -11 -10 -10 --------- Run | Yrd Mat Min Machines Accessed . | . . . Terminals . | . . . Fabricators . | . . . Repair Stations . | . . . Recycling Units . | . . . Scanalyzers . | . . . Garrison Access . | . . . Total Hacks . | . . . Successful . | . . . Failed . | . . . Catastrophic . | . . . Database Lockouts . | . . . Manual . | . . . Terminals . | . . . Fabricators . | . . . Repair Stations . | . . . Recycling Units . | . . . Scanalyzers . | . . . Garrison Access . | . . . Terminal Hacks . | . . . Fabricator Hacks . | . . . Repair Station Hacks . | . . . Recycling Unit Hacks . | . . . Scanalyzer . | . . . Garrison Access Hacks . | . . . Unauthorized Hacks . | . . . Terminals . | . . . Fabricators . | . . . Repair Stations . | . . . Recycling Units . | . . . Scanalyzers . | . . . Garrison Access . | . . . Data Cores Recovered . | . . . Used . | . . . Hacking Detections . | . . . Full Trace Events . | . . . Feedback Events . | . . . Feedback Blocked . | . . . Robot Schematics Acquired . | . . . Robots Built . | . . . Authchips . | . . . Time . | . . . Total Robot Build Rating . | . . . Part Schematics Acquired . | . . . Parts Built . | . . . Authchips . | . . . Time . | . . . Total Part Build Rating . | . . . Parts Repaired . | . . . Time . | . . . Parts Recycled . | . . . Recycled Matter . | . . . Retrieved Matter . | . . . Retrieved Components . | . . . Parts Scanalyzed . | . . . Part Schematics Acquired . | . . . Parts Damaged . | . . . Bothacking | -11 -10 -10 ------------ Run | Yrd Mat Min Used RIF Installer . | . . . Robots Hacked . | . . . Non-combat . | . . . Combat . | . . . Robot Hacks Applied . | . . . Relay Couplers Released . | . . . Fabnet Peak Effective % . | . . . Robots Rewired . | . . . Allies Hacked . | . . . Hacks Repelled . | . . . Allies | -11 -10 -10 -------- Run | Yrd Mat Min Total Allies . | . . . Largest Group . | . . . Highest-Rated Group . | . . . Highest-Rated Ally . | . . . Total Orders . | . . . Ally Attacks . | . . . Total Damage . | . . . Kills . | . . . Allies Corrupted . | . . . Allies Melted . | . . . Intel | -11 -10 -10 ------- Run | Yrd Mat Min Active Infowar (turns) . | . . . Robot Analysis Total . | . . . Derelict Logs Recovered . | . . . Drone Launches . | . . . Drone Recoveries . | . . . Exploration | -11 -10 -10 ------------- Run | Yrd Mat Min Turns Passed 369 | 66 221 82 Spaces Moved 206 | 40 130 36 Core 12 | 12 . . Treads 194 | 28 130 36 Legs . | . . . Wheels . | . . . Hover . | . . . Flight . | . . . Fastest Speed 50 | 50 160 160 Average Speed 153 | 127 160 160 Slowest Speed 160 | 160 160 160 Overloaded Moves . | . . . Propulsion Burnouts . | . . . Robots Hopped . | . . . Potential Cave-ins . | . . . Cave-ins Triggered . | . . . Exploration Rate (%) 16 | 4 29 15 Regions Visited 2 Branch Regions 1 Pre-discovered Areas . | . . . Known Exits Taken . | . . . Unknown Exits Taken 2 | 1 1 . Scrap Searched . | . . . Spaces Dug . | . . . Terrain Destroyed 78 | . 13 65 Melee . | . . . Projectile . | . . . AOE 78 | . 13 65 Terrain Rammed . | . . . Walls Destroyed . | . . . Machines Disabled . | . . . Actions | -11 -10 -10 --------- Run | Yrd Mat Min Total 244 | 55 142 47 Wait . | . . . Move 204 | 39 129 36 Hop . | . . . Pick Up 14 | 9 5 . Fast Attach 2 | 1 1 . Attach 8 | 5 2 1 Detach 2 | 1 1 . Swap . | . . . Drop 1 | . 1 . Fire 13 | . 3 10 Melee . | . . . Ram . | . . . Kick . | . . . Crush . | . . . Escape Stasis . | . . . Rewire . | . . . Trap . | . . . Miscellaneous . | . . . Route ------- -11/Scrapyard -10/Materials -10/Mines History --------- Turn | Location | Event 8 | -11/Scrapyard | Discovered new exit (range 15) 67 | -11/Scrapyard | Entered Materials 264 | -10/Materials | Discovered new exit (range 16) 288 | -10/Materials | Entered Mines 289 | -10/Mines | Assembled infested the area 294 | -10/Mines | Assisted by a Guerilla fighting off Assembled 301 | -10/Mines | Build established: Mutant 355 | -10/Mines | System corruption reached 10% 358 | -10/Mines | Core integrity fell below 50% 364 | -10/Mines | Core integrity fell below 20% 365 | -10/Mines | Destroyed 10 combat bots 370 | -10/Mines | Destroyed by D-53 Grenadier with Mini Grenade Launcher Last Messages --------------- 00365_ The unstable cave ceiling collapses. 00365_ U-05 Engineer lays Concrete. 00365_ as-96298 destroyed. 00365_ as-08698 destroyed. 00365_ as-92548 destroyed. 00365_ Hvy. Assault Rifle destroyed. 00366_ U-05 Engineer lays Concrete. 00367_ System corrupted: Heat flow error (+252). 00368_ The unstable cave ceiling collapses. 00368_ U-05 Engineer lays Concrete. 00368_ as-14241 destroyed. 00368_ as-78540 destroyed. 00368_ as-99199 destroyed. 00368_ as-06951 destroyed. 00368_ as-45231 destroyed. 00368_ K-01 Serf collects debris. 00368_ as-00939 destroyed. 00368_ Lgt. Treads destroyed. 00369_ U-05 Engineer lays Concrete. 00370_ Lgt. Treads destroyed. Map ----- +----------------------------------------------------+ | ??????????????????????# ########????????????????? | | ??????????????????????# #????????????????? | | ??????????????????????## #????????????????? | | ???????????????????????# """ #????????????????? | | ???????????????????????# """ #????????????????? | | ???????????????????????# """ #????????????????? | | ???????????????????????# #??????? ????????? | | ???????????????????????# #????? ???????? | | ???????????????????????# #???? ???????? | | ???????????????????????#T# ######?? ???????? | | ???????????????????????## # ## ????????? | | ????????????????????????# # # # #?????????? | | ???????????????????????# k #?????????? | | ???????????????????????# % #?????????? | | ???????????????????????? # #?????????? | | ???????????????????????## #???????????? | | ???????????????????????# # ##????????????? | | ???????????????????????# ####?????????????? | | ???????????????????????# = #????????????????? | | ????????????????????#### ##???????????????? | | ????????????????????# d #???????????????? | | ????????????????????# d ####?????????????? | | ????????????????????# u #####?????????? | | ????????????????????## % rk #????????? | | ????????????????????## ## #????????? | | ????????????????????# * [@ ## #???????????? | | ????????????????????# ####??#???????????? | | ???????????????????# * ##?????????????????? | | ??????????????????# [% ####??????????????????? | | ?????????????????# % ###?????????????????????? | | ???????????????? t #????????????????????????? | | ?????????????? ###?????????????????????????? | | ????????????? ##??????????????????????????? | | ????????????? ?????????????????????????????? | | ?????????????# ###??????????????????????????????? | | ??????????????#??????????????????????????????????? | | ?????????????????????????????????????????????????? | | ?????????????????????????????????????????????????? | | ?????????????????????????????????????????????????? | | ?????????????????????????????????????????????????? | | ?????????????????????????????????????????????????? | | ?????????????????????????????????????????????????? | | ?????????????????????????????????????????????????? | | ?????????????????????????????????????????????????? | | ?????????????????????????????????????????????????? | | ?????????????????????????????????????????????????? | | ?????????????????????????????????????????????????? | | ?????????????????????????????????????????????????? | | ?????????????????????????????????????????????????? | | ?????????????????????????????????????????????????? | +----------------------------------------------------+ Best States ------------- Heat Dissipation 25 Energy Generation 10 Energy Capacity 250 Matter Stores 243 Matter Capacity 300 Sight Range 16 Terrain Scan Density 10 Evasion (%) 50 Targeting Accuracy 6 Recoil Reduction 2 Item Schematics ----------------- None Robot Schematics ------------------ None Fabricated ------------ Nothing Repaired ---------- Nothing Alien Tech Used ----------------- None Achievements -------------- System Compromised Challenges ------------ None Game ------ Seed ArmageddonArmoredCloak Manual? 0 Play Time 00:10:25 Cumulative 3.8 hours Start 2025.06.01 @ 04:47:08 End 2025.06.01 @ 04:58:22 Sessions 1 Manual Loads 0 Difficulty Rogue Special Mode None Game No. 9 Rogue 9 Adventurer 0 Explorer 0 Win Type - Total 0 Types 0/0/0/0/0/0/0/0/0/0 Lore% 1 Gallery% 5 Achievement% 6 Wizard Run 0 Options --------- Layout 1 ASCII 0 Keyboard 0 Movement Mouse Keybinds 0 Fullscreen 1 Font 32/Tamsyn Map View 50x35 Zoom Use 0% Tactical HUD 1 Map Filters NONE Filters NONE Steam 1 RUN: 6eeb4009-1d4a-42be-a9db-ed46f6f5efa2